bitfinex/quotes_SOLUSD_20251007
["timestamp","ask_amount","ask_price","bid_price","bid_amount"]
[1759845785654,7.46542677,227.13,227.03,32.66]
[1759845785862,28.96542677,227.14,227.04,0.72]
[1759845786042,2.29708564,227.3,227.04,0.72]
[1759845786243,0.7,227.21,227.05,10.87647521]
[1759845786445,0.7,227.21,227.07,10.87647521]
[1759845786745,20.8,227.21,227.08,0.72]
[1759845787162,0.7,227.24,227.09,10.87647521]
[1759845787472,0.7,227.24,227.1,0.72]
[1759845787768,20.8,227.22,227.11,66.96]
[1759845787958,7.46542677,227.27,227.12,0.72]
[1759845788158,20.8,227.22,227.12,0.72]
[1759845788661,7.46542677,227.23,227.12,0.72]
[1759845788970,0.7,227.21,227.13,32.66]
[1759845789149,8.16542677,227.22,227.13,33.38]
[1759845789349,28.26542677,227.21,227.13,33.38]
[1759845789544,7.46542677,227.19,227.11,34.3]
[1759845789778,7.46542677,227.17,227.12,32.66]
[1759845790073,7.46542677,227.14,227.13,32.66]
[1759845790274,8.16542677,227.14,227.11,34.3]
[1759845790566,7.46542677,227.12,227.11,34.3]
[1759845790766,8.16542677,227.12,227.11,66.96]
[1759845791769,0.7,227.12,227.11,66.96]
[1759845792073,8.16542677,227.12,227.11,66.96]
[1759845792960,8.16542677,227.12,227.11,34.3]
[1759845793169,8.16542677,227.12,227.11,66.96]
[1759845793475,19.04190198,227.12,227.11,34.3]
[1759845793652,31.67647521,227.09,227.08,34.3]
[1759845793847,35.20555709,227.09,227.08,66.96]
[1759845794056,42.67098386,227.09,227.08,66.96]
[1759845794258,10.99450865,227.09,227.08,66.96]
[1759845794460,8.16542677,227.09,227.08,66.96]
[1759845794671,8.16542677,227.09,227.08,34.3]
[1759845794861,20.8,227.11,227.08,66.96]
[1759845795059,8.16542677,227.1,227.08,66.96]
[1759845795357,16.5,227.12,227.08,66.96]
[1759845795564,0.7,227.11,227.09,32.66]
[1759845795872,8.16542677,227.1,227.08,34.3]
[1759845796080,8.16542677,227.1,227.09,32.66]
[1759845796081,34.50804868,227.1,227.09,32.66]
[1759845796457,10.87647521,227.09,227.08,34.3]
[1759845796761,31.67647521,227.07,227.06,34.32]
[1759845796974,35.20804868,227.07,227.06,66.98]
[1759845797173,42.67347545,227.07,227.06,66.98]
[1759845797351,42.67347545,227.07,227.06,34.32]
[1759845797675,42.67347545,227.07,227.06,66.98]
[1759845797854,35.20804868,227.07,227.06,66.98]
[1759845798056,42.67347545,227.07,227.06,66.98]
[1759845798460,42.67347545,227.07,227.06,34.32]
[1759845798461,35.20804868,227.07,227.06,34.32]
[1759845798665,42.67347545,227.07,227.06,66.98]
[1759845799373,42.67347545,227.07,227.06,34.32]
[1759845799547,42.67347545,227.07,227.06,66.98]
[1759845799753,42.67347545,227.07,227.06,34.32]
[1759845799962,42.67347545,227.07,227.06,66.98]
[1759845800269,59.17347545,227.07,227.06,66.98]
[1759845800575,35.20804868,227.07,227.06,66.98]
[1759845800758,7.46542677,227.07,227.06,66.98]
[1759845801173,2.82766196,227.11,227.06,66.98]
[1759845801496,7.46542677,227.07,227.06,34.32]
[1759845801853,20.8,227.07,227.06,34.32]
[1759845802076,7.46542677,227.08,227.06,66.98]
[1759845802384,0.68,227.13,227.06,66.98]
[1759845802565,7.46542677,227.11,227.06,66.98]
[1759845802885,7.46542677,227.11,227.07,33.35]
[1759845803074,2.82734619,227.15,227.08,32.66]
[1759845803265,20.8,227.07,227.06,34.32]
[1759845803467,28.94542677,227.07,227.06,34.32]
[1759845803669,42.6479317,227.07,227.06,66.98]
[1759845803975,35.18250493,227.07,227.06,66.98]
[1759845804181,28.94542677,227.07,227.06,66.98]
[1759845804490,3.55891369,227.14,227.06,66.98]
[1759845804491,0.68,227.13,227.06,66.98]
[1759845804786,7.46542677,227.07,227.06,34.32]
[1759845804958,19.02190198,227.07,227.06,66.98]
[1759845805464,21.84618371,227.07,227.06,66.98]
[1759845805664,13.70075694,227.07,227.06,66.98]
[1759845805895,7.46542677,227.07,227.06,66.98]
[1759845806061,8.14542677,227.07,227.06,34.32]
[1759845806260,19.02190198,227.07,227.06,66.98]
[1759845806669,8.14542677,227.07,227.06,66.98]
[1759845806870,7.46542677,227.07,227.06,66.98]
[1759845807069,0.68,227.11,227.06,66.98]
[1759845807262,7.46542677,227.07,227.06,66.98]
[1759845807573,12.17655604,227.2,227.06,66.98]
[1759845807574,3.50373664,227.15,227.06,66.98]
[1759845807784,7.46542677,227.1,227.06,66.98]
[1759845807965,7.46542677,227.1,227.06,67.64]
[1759845808299,7.46542677,227.07,227.06,66.98]
[1759845808657,7.46542677,227.07,227.06,34.32]
[1759845809175,8.14542677,227.07,227.06,34.32]
[1759845809485,8.14542677,227.07,227.06,66.98]
[1759845809863,19.02190198,227.07,227.06,66.98]
[1759845810261,19.02190198,227.07,227.06,34.32]
[1759845810262,35.52190198,227.07,227.06,34.32]
[1759845810461,35.52190198,227.07,227.06,66.98]
[1759845810669,21.84085291,227.07,227.06,66.98]
[1759845810872,11.55647521,227.07,227.06,66.98]
[1759845811070,16.62666085,227.07,227.06,66.98]
[1759845811307,19.44520013,227.07,227.06,66.98]
[1759845811494,19.44520013,227.07,227.0,10.0]
[1759845811495,10.87647521,227.01,227.0,44.34]
[1759845811792,16.62666085,227.01,227.0,77.0]
[1759845812475,15.94666085,227.01,227.0,77.0]
[1759845812793,21.48,227.05,227.0,77.0]
[1759845812971,5.07018564,227.01,227.0,77.0]
[1759845814198,5.07018564,227.01,227.0,44.34]
[1759845814400,5.07018564,227.01,227.0,77.0]
[1759845814689,5.07018564,227.01,227.0,32.66]
[1759845814690,5.75018564,227.01,227.0,32.66]
[1759845815369,31.67647521,226.97,226.93,34.34]
[1759845815569,31.67647521,226.97,226.94,0.66]
[1759845815760,5.07018564,226.95,226.93,34.34]
[1759845815963,5.07018564,226.94,226.93,34.34]
[1759845816379,20.8,226.98,226.93,67.66]
[1759845816686,0.68,227.07,226.93,67.0]
[1759845816991,20.8,226.96,226.94,0.66]
[1759845817297,20.8,226.96,226.95,32.66]
[1759845817497,20.8,226.96,226.95,33.32]
[1759845817703,20.8,227.03,226.95,33.32]
[1759845817909,5.07018564,227.01,226.96,0.66]
[1759845818204,5.07018564,226.99,226.97,0.66]
[1759845818373,5.07018564,226.98,226.97,0.66]
[1759845818575,5.07018564,226.98,226.97,33.32]
[1759845818797,0.7,227.05,226.97,33.32]
[1759845818968,5.07018564,227.0,226.97,33.32]
[1759845819166,5.07018564,226.99,226.98,0.65]
[1759845819691,5.07018564,226.99,226.98,33.31]
[1759845819994,25.87018564,226.99,226.98,32.66]
[1759845821378,25.87018564,226.99,226.93,34.34]
[1759845821675,5.07018564,226.94,226.93,34.34]
[1759845822191,0.7,226.94,226.93,67.0]
[1759845822493,16.64666085,226.94,226.93,67.0]
[1759845822794,21.71684649,226.94,226.93,67.0]
[1759845823095,21.71684649,226.94,226.93,34.34]
[1759845823300,20.8,226.91,226.88,0.1]
[1759845823505,5.07018564,226.89,226.88,0.75]
[1759845823792,5.07018564,226.89,226.88,32.76]
[1759845824196,15.94666085,226.89,226.88,0.1]
[1759845824387,31.67647521,226.86,226.85,34.34]
[1759845824694,40.26815473,226.86,226.85,67.0]
[1759845824900,10.87647521,226.85,226.83,0.1]
[1759845825192,28.07647521,226.85,226.84,32.66]
[1759845825404,28.07647521,226.85,226.83,0.1]
[1759845825405,30.89477001,226.85,226.83,0.1]
[1759845825606,28.07647521,226.85,226.84,32.66]
[1759845825777,30.89477161,226.85,226.84,32.66]
[1759845825971,19.3182964,226.85,226.84,32.66]
[1759845826167,20.8,226.86,226.84,33.31]
[1759845826486,5.07018564,226.85,226.84,33.31]
[1759845826887,25.87018564,226.85,226.84,33.31]
[1759845827285,25.87018564,226.85,226.84,32.66]
[1759845827596,25.87018564,226.85,226.84,33.31]
[1759845828179,25.87018564,226.85,226.83,0.1]
[1759845828477,25.87018564,226.85,226.84,32.66]
[1759845829075,16.64666085,226.85,226.83,0.1]
[1759845829273,15.94666085,226.85,226.84,32.66]
[1759845829584,5.07018564,226.85,226.84,32.66]
[1759845829793,25.87018564,226.85,226.84,32.66]
[1759845829993,5.07018564,226.85,226.84,32.66]
[1759845830301,21.57018564,226.85,226.84,32.66]
[1759845830596,5.07018564,226.85,226.84,32.66]
[1759845831169,2.81526442,226.88,226.84,33.31]
[1759845831368,5.07018564,226.85,226.84,32.66]
[1759845831992,5.07018564,226.85,226.83,0.1]
[1759845832190,2.81537909,226.88,226.84,33.31]
[1759845832399,20.8,226.85,226.84,32.66]
[1759845832992,20.8,226.85,226.84,33.31]
[1759845833176,5.07018564,226.86,226.84,33.31]
[1759845833376,5.07018564,226.86,226.83,0.1]
[1759845833377,5.07018564,226.86,226.85,33.31]
[1759845833576,10.87647521,226.92,226.85,33.31]
[1759845833894,5.07018564,226.94,226.85,33.31]
[1759845833895,5.07018564,226.87,226.85,33.31]
[1759845834109,15.94666085,226.94,226.85,33.31]
[1759845834110,2.81940957,226.93,226.86,0.65]
[1759845834298,10.87647521,226.98,226.86,0.65]
[1759845834475,20.8,226.89,226.86,0.65]
[1759845834675,4.25891369,227.0,226.86,0.65]
[1759845834676,10.87647521,226.98,226.86,0.65]
[1759845834888,5.07018564,226.94,226.86,0.65]
[1759845835175,5.07018564,226.95,226.86,0.65]
[1759845835374,20.8,227.01,226.86,0.65]
[1759845835614,5.07018564,226.96,226.86,0.65]
[1759845835796,0.7,227.04,226.87,32.66]
[1759845835797,0.7,227.01,226.87,32.66]
[1759845836008,5.07018564,226.92,226.88,33.31]
[1759845836193,10.87647521,227.02,226.89,33.31]
[1759845836379,5.07018564,226.96,226.9,33.31]
[1759845836572,5.07018564,226.96,226.91,33.34]
[1759845836771,2.82600442,227.04,226.92,33.34]
[1759845836772,2.82641179,227.04,226.92,33.34]
[1759845836978,5.07018564,227.0,226.93,33.34]
[1759845837188,20.8,227.05,226.94,0.68]
[1759845837395,5.07018564,226.98,226.94,0.68]
[1759845837682,5.07018564,227.0,226.95,28.7]
[1759845837886,5.07018564,227.0,226.96,0.68]
[1759845838083,5.07018564,227.0,226.97,0.68]
[1759845838277,0.66,227.03,226.93,0.68]
[1759845838485,20.8,227.01,226.94,33.34]
[1759845838789,5.07018564,226.98,226.95,29.34]
[1759845839105,31.67647521,227.05,226.96,33.34]
[1759845839302,5.07018564,227.02,226.97,33.34]
[1759845839511,5.07018564,227.02,226.98,33.34]
[1759845839675,5.07018564,227.03,226.99,0.68]
[1759845839995,5.07018564,227.05,226.99,0.68]
[1759845840189,2.82911273,227.12,226.99,0.68]
[1759845840410,0.66,227.13,226.99,0.68]
[1759845840582,2.82911273,227.15,226.99,0.68]
[1759845840908,5.07018564,227.11,226.99,0.68]
[1759845841119,5.07018564,227.12,226.99,0.68]
[1759845841408,0.66,227.17,227.0,32.66]
[1759845841409,5.07018564,227.1,227.0,32.66]
[1759845841625,5.07018564,227.1,227.01,35.04]
[1759845841776,20.8,227.13,227.01,35.04]
[1759845841980,13.50462654,227.21,227.01,35.04]
[1759845841981,5.07018564,227.05,227.02,0.68]
[1759845842176,0.66,227.09,227.03,32.66]
[1759845842389,5.07018564,227.04,227.03,32.66]
[1759845842801,5.07018564,227.04,227.01,34.36]
[1759845842984,5.07018564,227.02,226.93,0.68]
[1759845843322,5.07018564,226.95,226.94,34.34]
[1759845843809,5.07018564,226.95,226.89,0.68]
[1759845844022,5.07018564,226.9,226.85,0.68]
[1759845844304,0.66,226.96,226.86,1.52]
[1759845844509,10.87647521,227.0,226.79,0.1]
[1759845844510,5.07018564,226.87,226.79,0.1]
[1759845844813,5.07018564,226.87,226.84,6.72]
[1759845844986,5.07018564,226.85,226.82,0.68]
[1759845845308,5.07018564,226.85,226.79,0.1]
[1759845845903,5.07018564,226.85,226.83,0.78]
[1759845846220,5.07018564,226.85,226.83,0.1]
[1759845846424,5.07018564,226.85,226.84,15.46]
[1759845846630,5.07018564,226.88,226.84,16.14]
[1759845846927,5.07018564,226.87,226.84,16.14]
[1759845847107,5.07018564,226.87,226.84,15.46]
[1759845847305,20.8,226.93,226.85,0.68]
[1759845847502,5.07018564,226.9,226.85,0.68]
[1759845847829,20.8,226.93,226.86,34.34]
[1759845848010,5.07018564,226.9,226.86,35.02]
[1759845848320,5.07018564,226.9,226.86,34.34]
[1759845848524,20.8,226.93,226.87,0.68]
[1759845848736,0.66,226.98,226.87,0.68]
[1759845849034,5.07018564,226.97,226.87,0.68]
[1759845849407,5.07018564,226.95,226.87,0.68]
[1759845849924,5.07018564,226.95,226.88,32.66]
[1759845850127,5.07018564,226.95,226.89,0.68]
[1759845850515,5.07018564,226.93,226.9,32.64]
[1759845850709,2.83049664,227.03,226.91,0.68]
[1759845851029,0.66,227.02,226.92,32.64]
[1759845851227,5.07018564,227.0,226.93,0.68]
[1759845851641,5.07018564,227.02,226.93,0.68]
[1759845851808,0.66,227.06,226.93,0.68]
[1759845852011,3.53301473,227.15,226.93,0.68]
[1759845852012,5.07018564,227.05,226.93,0.68]
[1759845852518,25.87018564,227.04,226.93,0.68]
[1759845852938,5.07018564,226.97,226.9,0.68]
[1759845853141,5.07018564,226.95,226.87,0.68]
[1759845853360,20.8,226.98,226.87,0.68]
[1759845853361,5.07018564,226.94,226.88,32.64]
[1759845853635,5.07018564,226.94,226.89,32.64]
[1759845853847,5.73018564,226.94,226.9,32.64]
[1759845854029,5.07018564,226.95,226.9,33.32]
[1759845854725,20.8,226.98,226.9,33.32]
[1759845854726,0.66,227.03,226.91,0.68]
[1759845854931,25.87018564,227.0,226.91,0.68]
[1759845855140,20.8,227.0,226.91,0.68]
[1759845855517,5.07018564,227.01,226.91,0.68]
[1759845855725,5.07018564,227.01,226.92,32.64]
[1759845855931,5.07018564,227.01,226.93,0.68]
[1759845856149,5.07018564,227.0,226.94,32.64]
[1759845856456,5.07018564,227.0,226.88,0.68]
[1759845856457,5.07018564,226.95,226.88,0.68]
[1759845856622,0.66,226.99,226.89,32.64]
[1759845856937,0.66,227.04,226.9,0.68]
[1759845857149,25.87018564,226.98,226.9,0.68]
[1759845857319,5.07018564,226.97,226.91,32.64]
[1759845857520,5.07018564,226.96,226.91,32.64]
[1759845857747,0.66,227.05,226.92,0.68]
[1759845857914,5.07018564,227.02,226.92,0.68]
[1759845858945,0.66,227.05,226.92,0.68]
[1759845859118,5.07018564,227.04,226.93,32.64]
[1759845859328,5.07018564,227.04,226.94,0.68]
[1759845859937,20.8,227.06,226.95,32.64]
[1759845859938,5.07018564,226.98,226.95,32.64]
[1759845860138,20.8,227.0,226.96,32.64]
[1759845860139,0.66,226.97,226.96,32.64]
[1759845860348,5.73018564,226.97,226.96,32.64]
[1759845860534,21.46,227.0,226.96,32.64]
[1759845860846,5.07018564,226.98,226.96,32.64]
[1759845861149,20.8,227.0,226.89,0.68]
[1759845861150,0.66,226.97,226.89,0.68]
[1759845861348,5.07018564,226.95,226.9,32.64]
[1759845861524,21.46,226.97,226.9,32.64]
[1759845861719,25.87018564,226.97,226.89,0.68]
[1759845861919,5.07018564,226.93,226.9,32.64]
[1759845862140,5.07018564,226.91,226.86,34.34]
[1759845862322,20.8,226.89,226.86,34.34]
[1759845862523,5.07018564,226.87,226.86,34.34]
[1759845862748,25.87018564,226.89,226.86,66.98]
[1759845863342,0.66,226.89,226.86,66.98]
[1759845863543,5.07018564,226.87,226.86,66.98]
[1759845863737,5.73018564,226.87,226.83,34.37443229]
[1759845863931,20.8,226.87,226.84,32.64]
[1759845864134,25.87018564,226.87,226.84,32.64]
[1759845864331,25.87018564,226.87,226.85,0.68]
[1759845864332,20.8,226.87,226.85,0.68]
[1759845864633,20.8,226.91,226.84,32.64]
[1759845864831,25.87018564,226.91,226.84,32.64]
[1759845865143,20.8,226.92,226.85,0.68]
[1759845865652,5.07018564,226.95,226.85,0.68]
[1759845866039,5.07018564,226.9,226.83,34.37443229]
[1759845866346,5.07018564,226.9,226.84,32.64]
[1759845866538,5.07018564,226.88,226.83,34.37443229]
[1759845866742,5.07018564,226.88,226.84,32.64]
[1759845867048,5.07018564,226.89,226.84,32.64]
[1759845867249,20.8,226.91,226.85,0.68]
[1759845867550,5.07018564,226.91,226.85,0.68]
[1759845867747,0.72,226.94,226.84,32.64]
[1759845867748,20.8,226.92,226.84,32.64]
[1759845867955,5.07018564,226.9,226.84,32.64]
[1759845868545,5.07018564,226.89,226.84,32.64]
[1759845868852,5.07018564,226.85,226.83,34.37443229]
[1759845869049,21.52,226.88,226.85,32.64]
[1759845869228,5.07018564,226.86,226.85,32.64]
[1759845869434,5.79018564,226.86,226.85,32.64]
[1759845869625,5.07018564,226.86,226.85,32.64]
[1759845869833,5.07018564,226.86,226.83,34.37443229]
[1759845869834,5.79018564,226.86,226.83,34.37443229]
[1759845870143,5.07018564,226.94,226.83,34.37443229]
[1759845870144,5.07018564,226.84,226.83,34.37443229]
[1759845870327,5.07018564,226.84,226.83,67.01443229]
[1759845870732,5.07018564,226.84,226.83,34.37443229]
[1759845870933,5.07018564,226.84,226.83,67.01443229]
[1759845871142,7.50515839,226.84,226.83,67.01443229]
[1759845871539,7.50515839,226.84,226.83,34.37443229]
[1759845871540,19.1016336,226.84,226.83,34.37443229]
[1759845871747,19.1016336,226.84,226.83,67.01443229]
[1759845871955,19.1016336,226.84,226.83,34.37443229]
[1759845872144,20.8,226.8,226.79,0.1]
[1759845872343,28.30515839,226.8,226.79,32.74]
[1759845872543,29.02515839,226.8,226.79,0.1]
[1759845872742,29.02515839,226.8,226.79,32.74]
[1759845873158,0.72,226.8,226.79,32.74]
[1759845873330,21.52,226.8,226.79,32.74]
[1759845873653,29.02515839,226.8,226.79,32.74]
[1759845874640,0.72,226.84,226.79,32.74]
[1759845874839,7.50515839,226.8,226.79,32.74]
[1759845875338,7.50515839,226.8,226.79,0.1]
[1759845875561,7.50515839,226.8,226.79,32.74]
[1759845877466,8.22515839,226.8,226.79,32.74]
[1759845877639,19.1016336,226.8,226.79,0.1]
[1759845877843,19.1016336,226.8,226.79,32.74]
[1759845879856,7.50515839,226.8,226.79,32.74]
[1759845880445,8.18515839,226.8,226.79,32.74]
[1759845880638,8.18515839,226.8,226.79,0.1]
[1759845880834,8.18515839,226.8,226.79,32.76]
[1759845881239,8.18515839,226.8,226.79,32.74]
[1759845881447,19.0616336,226.8,226.79,32.74]
[1759845881651,19.0616336,226.8,226.79,0.1]
[1759845881847,19.0616336,226.8,226.79,32.76]
[1759845882059,19.0616336,226.8,226.79,0.1]
[1759845882366,19.0616336,226.8,226.79,32.76]
[1759845882665,19.0616336,226.8,226.79,0.1]
[1759845882974,31.67647521,226.76,226.74,34.36]
[1759845883280,20.8,226.72,226.64,0.72]
[1759845883441,7.50515839,226.67,226.64,0.72]
[1759845883847,7.50515839,226.67,226.65,67.74]
[1759845884070,7.50515839,226.67,226.66,0.72]
[1759845884567,7.50515839,226.67,226.66,67.74]
[1759845884876,7.50515839,226.67,226.66,67.02]
[1759845885168,7.50515839,226.67,226.66,34.36]
[1759845885465,20.8,226.69,226.66,67.02]
[1759845885786,7.50515839,226.7,226.67,0.72]
[1759845885942,20.8,226.69,226.68,0.72]
[1759845886146,2.8166532,226.84,226.68,0.72]
[1759845886147,7.50515839,226.8,226.68,0.72]
[1759845886375,7.50515839,226.76,226.68,0.72]
[1759845886542,20.8,226.77,226.69,32.66]
[1759845886747,20.8,226.77,226.7,0.72]
[1759845887059,0.68,226.84,226.71,32.66]
[1759845887270,7.50515839,226.76,226.72,0.72]
[1759845887469,7.50515839,226.77,226.73,32.66]
[1759845887659,7.50515839,226.77,226.73,0.72]
[1759845887860,7.50515839,226.77,226.74,32.66]
[1759845888062,7.50515839,226.76,226.74,32.66]
[1759845888248,20.8,226.77,226.74,0.72]
[1759845888249,7.50515839,226.77,226.74,0.72]
[1759845888573,20.8,226.76,226.75,33.38]
[1759845888750,8.18515839,226.76,226.75,32.66]
[1759845889269,20.8,226.73,226.7,34.38]
[1759845889473,7.50515839,226.71,226.7,34.38]
[1759845889774,7.50515839,226.71,226.7,67.04]
[1759845889970,7.50515839,226.71,226.7,34.38]
[1759845890180,7.50515839,226.71,226.7,67.04]
[1759845890768,19.0616336,226.71,226.7,34.38]
[1759845890970,19.0616336,226.71,226.7,67.04]
[1759845891268,19.0616336,226.71,226.7,34.38]
[1759845891453,19.0616336,226.71,226.7,67.04]
[1759845891649,19.0616336,226.71,226.7,34.38]
[1759845891854,19.0616336,226.71,226.7,67.04]
[1759845892070,8.18515839,226.71,226.7,34.38]
[1759845892454,19.0616336,226.71,226.7,67.04]
[1759845893982,19.0616336,226.71,226.7,34.38]
[1759845894283,0.68,226.76,226.7,67.04]
[1759845894464,20.8,226.72,226.7,67.04]
[1759845894783,20.8,226.72,226.7,67.76]
[1759845894960,7.50515839,226.71,226.7,67.04]
[1759845895373,4.71112927,226.87,226.7,67.04]
[1759845895374,13.5933302,226.79,226.7,67.76]
[1759845895575,13.5933302,226.79,226.61,0.1]
[1759845895576,13.17771992,226.7,226.61,0.1]
[1759845895776,20.8,226.59,226.53,120.0]
[1759845895992,28.73124471,226.7,226.44,32.15909091]
[1759845895993,10.87647521,226.49,226.47,102.33462693]
[1759845896158,10.87647521,226.49,226.44,32.15909091]
[1759845896159,31.67647521,226.45,226.44,32.15909091]
[1759845896359,10.87647521,226.44,226.29,120.72]
[1759845896563,7.50515839,226.36,226.29,120.0]
[1759845896789,22.63300407,226.36,226.29,120.0]
[1759845896959,7.50515839,226.36,226.29,120.0]
[1759845897159,10.87647521,226.36,226.35,120.68]
[1759845897383,20.8,226.44,226.35,154.42]
[1759845897682,10.87647521,226.43,226.36,0.68]
[1759845898001,20.8,226.37,226.36,0.68]
[1759845898284,35.95188676,226.47,226.35,153.74]
[1759845898285,20.8,226.36,226.35,153.74]
[1759845898492,0.66,226.45,226.35,153.74]
[1759845898792,7.50515839,226.36,226.35,153.74]
[1759845899086,7.50515839,226.36,226.35,154.42]
[1759845899284,20.8,226.4,226.35,154.42]
[1759845899586,20.8,226.44,226.36,0.68]
[1759845900057,7.50515839,226.39,226.36,0.68]
[1759845900376,7.50515839,226.37,226.35,120.0]
[1759845900573,10.87647521,226.37,226.36,33.78]
[1759845900761,35.44737746,226.47,226.36,33.78]
[1759845900762,21.46,226.44,226.36,33.78]
[1759845900970,22.50538701,226.47,226.37,0.68]
[1759845901263,7.50515839,226.44,226.37,0.68]
[1759845901571,20.8,226.44,226.38,34.52]
[1759845901886,21.46,226.44,226.38,33.84]
[1759845902062,7.50515839,226.39,226.35,120.0]
[1759845902262,20.8,226.36,226.35,120.0]
[1759845902588,13.44266309,226.5,226.35,153.9]
[1759845902797,0.66,226.52,226.35,153.9]
[1759845903087,8.16515839,226.56,226.36,0.68]
[1759845903295,7.50515839,226.42,226.36,0.68]
[1759845903494,0.66,226.53,226.36,0.68]
[1759845903673,7.50515839,226.44,226.36,0.68]
[1759845903868,7.50515839,226.39,226.36,0.68]
[1759845904068,21.04199213,226.56,226.37,34.58]
[1759845904265,3.44097518,226.55,226.38,0.68]
[1759845904489,3.44097518,226.55,226.39,33.92]
[1759845904789,20.8,226.41,226.4,35.1]
[1759845905180,7.50515839,226.48,226.4,69.02]
[1759845905363,20.41874519,226.56,226.41,0.68]
[1759845905564,12.9135868,226.56,226.41,0.68]
[1759845905884,7.50515839,226.72,226.41,0.68]
[1759845905885,0.66,226.64,226.41,0.68]
[1759845906063,0.66,226.69,226.42,10.87647521]
[1759845906262,0.66,226.69,226.44,10.87647521]
[1759845906578,7.50515839,226.64,226.46,10.87647521]
[1759845906772,7.50515839,226.63,226.47,34.66]
[1759845906982,13.4916757,226.72,226.48,11.55647521]
[1759845907165,0.66,226.74,226.51,20.8]
[1759845907362,0.66,226.74,226.52,33.98]
[1759845907576,0.66,226.74,226.53,0.68]
[1759845908069,7.50515839,226.66,226.54,33.98]
[1759845908391,7.50515839,226.66,226.44,13.22]
[1759845908392,7.50515839,226.61,226.55,0.68]
[1759845908566,28.30515839,226.62,226.56,33.96]
[1759845908767,28.30515839,226.62,226.57,0.68]
[1759845908962,0.66,226.72,226.58,0.68]
[1759845909294,20.8,226.67,226.58,0.68]
[1759845909468,7.50515839,226.67,226.58,0.68]
[1759845909672,0.66,226.72,226.58,0.68]
[1759845909882,7.50515839,226.65,226.58,0.68]
[1759845910092,0.66,226.66,226.54,0.68]
[1759845910268,0.66,226.66,226.55,11.46]
[1759845910468,20.8,226.67,226.56,0.68]
[1759845910691,7.50515839,226.64,226.56,0.68]
[1759845911000,7.50515839,226.6,226.55,11.46]
[1759845911293,7.50515839,226.6,226.35,120.0]
[1759845911294,7.50515839,226.59,226.35,120.0]
[1759845911594,0.23012447,226.55,226.52,0.68]
[1759845911892,0.23012447,226.55,226.53,33.94]
[1759845912071,0.23012447,226.55,226.54,33.92]
[1759845912272,0.66,226.7,226.54,34.6]
[1759845912590,7.50515839,226.63,226.55,0.68]
[1759845912784,21.46,226.69,226.55,0.68]
[1759845912968,20.8,226.63,226.55,0.68]
[1759845913173,20.8,226.61,226.56,33.92]
[1759845913372,7.50515839,226.6,226.56,0.68]
[1759845913675,0.66,226.65,226.44,10.87647521]
[1759845913676,20.8,226.64,226.57,34.6]
[1759845913996,2.30212344,226.67,226.57,34.6]
[1759845913997,2.30212344,226.67,226.58,33.9]
[1759845914217,7.50515839,226.65,226.58,34.58]
[1759845914368,20.8,226.62,226.58,34.58]
[1759845914763,28.30515839,226.64,226.58,33.9]
[1759845914967,7.50515839,226.63,226.58,33.9]